[Event "Bremer Silvester Open 2018"]
[Site "Bremen"]
[Date "2018.12.30"]
[Round "7"]
[White "Steffens, Olaf"]
[Black "Villwock, Martin"]
[Result "0-1"]
[ECO "A00"]
[WhiteElo "2185"]
[BlackElo "2208"]
[Annotator "NA"]
[PlyCount "129"]
[EventDate "2018.12.27"]
[EventType "swiss"]
[EventCountry "GER"]
[SourceTitle "playchess.com"]
[Source "ChessBase"]
[SourceQuality "1"]
[TimeControl "40/5400+30:1800+30"]

1. b4 {[%emt 0:05:01]} b6 {[%emt 0:00:00]} 2. Bb2 {[%emt 0:01:12]} Bb7 {[%emt 0:00:00]} 3. e3 {[%emt 0:00:29]} e6 {[%emt 0:00:41]} 4. Nf3 {[%emt 0:00:50]} Nf6 {[%emt 0:01:22]} 5. b5 {[%emt 0:00:35]} d5 {[%emt 0:01:45]} 6. c4 {[%emt 0:02:14]} Bd6 {[%emt 0:01:34]} 7. a4 {[%emt 0:00:54]} a5 {[%emt 0:01:41]} 8. cxd5 {[%emt 0:10:22]} Bxd5 {[%emt 0:00:30]} 9. Be2 {[%emt 0:07:30]} O-O {[%emt 0:01:54]} 10. d3 {[%emt 0:06:38]} Nbd7 {[%emt 0:05:47]} 11. Nbd2 {[%emt 0:00:48]} e5 {[%emt 0:01:17]} 12. e4 {[%emt 0:04:51]} Bb7 {[%emt 0:01:26]} 13. O-O {[%emt 0:00:33]} Qe7 {[%emt 0:00:22]} 14. Nc4 {[%emt 0:01:22]} Rfe8 {[%emt 0:06:31]} 15. Rc1 {[%emt 0:02:30]} Rac8 {[%emt 0:01:32]} 16. Rc2 {[%emt 0:02:39]} Ng4 {[%emt 0:04:46]} 17. Qa1 {[%emt 0:05:53]} f6 {[%emt 0:00:23]} 18. Nh4 {[%emt 0:06:07]} Nh6 {[%emt 0:01:45]} 19. Bc1 {[%emt 0:04:49]} f5 {[%emt 0:04:30]} 20. Qa2 {[%emt 0:09:24]} Kh8 {[%emt 0:01:14]} 21. Nxf5 {[%emt 0:07:01]} Nxf5 {[%emt 0:00:32]} 22. exf5 {[%emt 0:00:07]} e4 {[%emt 0:02:37]} 23. Nxd6 {[%emt 0:06:17]} cxd6 {[%emt 0:01:01]} 24. d4 {[%emt 0:02:05]} e3 {[%emt 0:06:08]} 25. Bxe3 {[%emt 0:04:37]} Qe4 {[%emt 0:00:52]} 26. Rc6 {[%emt 0:00:38]} Bxc6 {[%emt 0:00:59]} 27. bxc6 {[%emt 0:03:08]} Nf6 {[%emt 0:04:51]} 28. Bf3 {[%emt 0:00:12]} Qxf5 {[%emt 0:00:20]} 29. d5 {[%emt 0:00:13]} Ne4 {[%emt 0:01:28]} 30. Qc4 {[%emt 0:01:12]} h5 {[%emt 0:04:39]} 31. Rd1 {[%emt 0:00:12]} Ng5 {[%emt 0:02:30]} 32. Bxg5 Qxg5 {[%emt 0:00:10]} 33. h4 {[%emt 0:01:26]} Qe5 {[%emt 0:02:44]} 34. Qa6 {[%emt 0:00:47]} Qc3 {[%emt 0:03:31]} 35. Kh2 {[%emt 0:02:07]} Qb4 {[%emt 0:01:23]} 36. g3 {[%emt 0:00:30]} Rf8 {[%emt 0:02:37]} 37. Qd3 {[%emt 0:01:04]} Rce8 {[%emt 0:01:52]} 38. Kg2 {[%emt 0:00:55]} Re5 {[%emt 0:03:31]} 39. Rc1 {[%emt 0:00:16]} Qxa4 {[%emt 0:01:46]} 40. c7 {[%emt 0:01:21]} Qd7 {[%emt 0:01:16]} 41. Qg6 {[%emt 0:06:55]} Rc8 {[%emt 0:08:05]} 42. Rc6 {[%emt 0:03:20]} b5 {[%emt 0:07:10]} 43. Rxd6 {[%emt 0:14:06]} Qxc7 {[%emt 0:04:06]} 44. Re6 {[%emt 0:00:17]} Rf8 {[%emt 0:02:56]} 45. Be4 {[%emt 0:01:33]} Rxe4 {[%emt 0:01:01]} 46. Qxh5+ {[%emt 0:01:13]} Kg8 {[%emt 0:00:07]} 47. Rxe4 {[%emt 0:00:05]} Qc5 {[%emt 0:02:15]} 48. Re2 {[%emt 0:03:43]} a4 {[%emt 0:02:05]} 49. Qe5 {[%emt 0:01:26]} a3 {[%emt 0:02:29]} 50. Qe6+ {[%emt 0:02:24]} Kh8 {[%emt 0:00:18]} 51. h5 {[%emt 0:00:39]} Rf6 {[%emt 0:01:21]} 52. Qe8+ {[%emt 0:00:13]} Rf8 {[%emt 0:01:16]} 53. Qe5 {[%emt 0:00:41]} Rf6 {[%emt 0:00:58]} 54. Qe8+ {[%emt 0:00:31]} Rf8 {[%emt 0:00:39]} 55. Qe6 {[%emt 0:00:33]} Rf6 {[%emt 0:00:10]} 56. Qe4 {[%emt 0:00:13]} b4 {[%emt 0:00:38]} 57. Rc2 {[%emt 0:00:27]} Qf8 {[%emt 0:01:07]} 58. Qg4 {[%emt 0:00:06]} b3 {[%emt 0:00:31]} 59. Rc8 {[%emt 0:00:41]} Rxf2+ {[%emt 0:00:37]} 60. Kh3 {[%emt 0:00:05]} a2 {[%emt 0:01:37]} 61. h6 {[%emt 0:00:43]} a1=Q {[%emt 0:00:26]} 62. hxg7+ {[%emt 0:01:17]} Qaxg7 {[%emt 0:00:08]} 63. Rxf8+ {[%emt 0:00:40]} Rxf8 {[%emt 0:00:17]} 64. d6 {[%emt 0:00:31]} Qxg4+ {[%emt 0:00:14]} 65. Kh2 {[%emt 0:01:19]} 0-1

[Event "Bremer Silvester Open 2018"]
[Site "Bremen"]
[Date "2018.12.30"]
[Round "7"]
[White "Schulz, Daniel"]
[Black "Zahn, Richard"]
[Result "1-0"]
[ECO "A90"]
[WhiteElo "2069"]
[BlackElo "2067"]
[Annotator "NA"]
[PlyCount "105"]
[EventDate "2018.12.27"]
[EventType "swiss"]
[EventCountry "GER"]
[SourceTitle "playchess.com"]
[Source "ChessBase"]
[SourceQuality "1"]
[TimeControl "40/5400+30:1800+30"]

1. d4 {[%emt 0:03:40]} e6 {[%emt 0:02:19]} 2. c4 {[%emt 0:00:32]} d5 {[%emt 0:00:07]} 3. Nf3 {[%emt 0:00:06]} c6 {[%emt 0:00:13]} 4. g3 {[%emt 0:00:16]} Bd6 {[%emt 0:00:02]} 5. Bg2 {[%emt 0:00:11]} f5 {[%emt 0:00:11]} 6. O-O {[%emt 0:00:15]} Nf6 {[%emt 0:00:01]} 7. Nc3 {[%emt 0:00:26]} O-O {[%emt 0:00:15]} 8. Qc2 {[%emt 0:00:37]} Qe7 {[%emt 0:01:30]} 9. Rb1 {[%emt 0:01:38]} Nbd7 {[%emt 0:08:13]} 10. a3 {[%emt 0:12:17]} Ne4 {[%emt 0:02:29]} 11. b4 {[%emt 0:03:52]} a6 {[%emt 0:04:40]} 12. Qb3 {[%emt 0:05:37]} Ndf6 {[%emt 0:06:44]} 13. a4 {[%emt 0:06:06]} Bd7 {[%emt 0:08:19]} 14. Ne5 {[%emt 0:05:56]} Be8 {[%emt 0:09:33]} 15. f3 {[%emt 0:09:04]} Nxc3 {[%emt 0:03:44]} 16. Qxc3 {[%emt 0:00:11]} Nd7 {[%emt 0:08:48]} 17. Be3 {[%emt 0:13:38]} Qf6 {[%emt 0:11:03]} 18. Nd3 {[%emt 0:05:49]} Qe7 {[%emt 0:10:13]} 19. Rfc1 {[%emt 0:08:50]} Bf7 {[%emt 0:05:36]} 20. Ne5 {[%emt 0:00:54]} Be8 {[%emt 0:04:50]} 21. Nd3 {[%emt 0:00:50]} Nf6 {[%emt 0:00:48]} 22. Ne5 {[%emt 0:01:04]} Nd7 {[%emt 0:00:08]} 23. Kh1 {[%emt 0:01:47]} Qf6 {[%emt 0:02:25]} 24. Nd3 {[%emt 0:01:12]} Qe7 {[%emt 0:00:11]} 25. b5 {[%emt 0:04:39]} axb5 26. axb5 {[%emt 0:00:23]} Nf6 {[%emt 0:00:54]} 27. c5 {[%emt 0:03:07]} Bb8 {[%emt 0:00:44]} 28. bxc6 bxc6 {[%emt 0:00:15]} 29. Bf4 {[%emt 0:03:50]} Bxf4 {[%emt 0:01:10]} 30. Nxf4 {[%emt 0:00:24]} g5 {[%emt 0:01:00]} 31. Nd3 {[%emt 0:00:21]} Nh5 {[%emt 0:00:23]} 32. Ne5 {[%emt 0:01:03]} f4 {[%emt 0:01:41]} 33. g4 {[%emt 0:01:12]} Nf6 {[%emt 0:01:03]} 34. Rb6 {[%emt 0:00:56]} Qc7 {[%emt 0:01:04]} 35. Rcb1 {[%emt 0:00:56]} Ra7 {[%emt 0:00:01]} 36. e3 {[%emt 0:03:55]} Kh8 {[%emt 0:03:00]} 37. Bf1 {[%emt 0:00:38]} Ng8 {[%emt 0:00:19]} 38. Kg2 {[%emt 0:01:34]} Ne7 {[%emt 0:00:13]} 39. Bd3 {[%emt 0:00:22]} Nc8 {[%emt 0:00:16]} 40. R6b2 {[%emt 0:00:34]} fxe3 {[%emt 0:00:13]} 41. Qe1 {[%emt 0:01:44]} Qg7 {[%emt 0:08:28]} 42. Qxe3 {[%emt 0:04:38]} Ne7 {[%emt 0:02:52]} 43. h4 {[%emt 0:01:33]} gxh4 {[%emt 0:02:55]} 44. Rh1 {[%emt 0:01:36]} Ra3 {[%emt 0:02:36]} 45. Qf2 {[%emt 0:06:13]} Nf5 {[%emt 0:02:04]} 46. Bxf5 {[%emt 0:01:21]} exf5 {[%emt 0:00:14]} 47. Rxh4 {[%emt 0:03:45]} fxg4 {[%emt 0:01:28]} 48. Rxg4 {[%emt 0:00:18]} Qf6 {[%emt 0:01:16]} 49. Qh4 {[%emt 0:02:48]} Rxf3 {[%emt 0:09:33]} 50. Nxf3 {[%emt 0:02:19]} Qxf3+ {[%emt 0:00:07]} 51. Kh2 {[%emt 0:00:26]} Bd7 {[%emt 0:00:45]} 52. Rg3 {[%emt 0:01:06]} Qf1 {[%emt 0:05:03]} 53. Qg5 {[%emt 0:05:40]} 1-0